bitfinex-derivatives/quotes_ETHF0:USTF0_20250602
["timestamp","ask_amount","ask_price","bid_price","bid_amount"]
[1748885700871,2.35177651,2543.9,2543.8,3.99365]
[1748885701372,2.35177651,2543.9,2543.8,15.89365]
[1748885701571,4.72e-06,2543.9,2543.8,15.89365]
[1748885702869,2.35177651,2543.9,2543.8,8.03165]
[1748885703180,3.67257651,2543.9,2543.8,8.03165]
[1748885703974,1.32080472,2543.9,2543.8,8.03165]
[1748885704179,4.72e-06,2543.9,2543.8,8.03165]
[1748885704373,3.62696833,2543.9,2543.8,8.03165]
[1748885706272,1.27330472,2543.9,2543.8,8.03165]
[1748885709178,3.62696833,2543.9,2543.8,8.03165]
[1748885709371,4.41278833,2543.9,2543.8,3.99365]
[1748885709578,3.62696833,2543.9,2543.8,8.03165]
[1748885711686,1.27330472,2543.9,2543.8,8.03165]
[1748885711882,1.27330472,2543.9,2543.8,8.10234789]
[1748885712981,1.27330472,2543.9,2543.8,8.03165]
[1748885714087,1.27330472,2543.9,2543.8,3.99365]
[1748885714288,1.27330472,2543.9,2543.8,8.03165]
[1748885715373,1.27330472,2543.9,2543.8,3.99365]
[1748885715579,1.27330472,2543.9,2543.8,8.03165]
[1748885716081,2.05912472,2543.9,2543.8,8.03165]
[1748885716280,0.78587,2543.8,2543.7,0.78585]
[1748885716481,2.04457,2543.8,2543.7,4.82385]
[1748885716882,0.78591,2543.7,2543.6,4.8239]
[1748885717185,20.9066,2543.7,2543.6,4.8239]
[1748885719286,20.9066,2543.7,2543.6,0.7859]
[1748885719490,20.9066,2543.7,2543.6,4.8239]
[1748885720287,21.69248,2543.7,2543.6,4.038]
[1748885720790,24.82817572,2543.7,2543.6,4.038]
[1748885720984,24.82817572,2543.7,2543.5,3.2078]
[1748885720985,0.78591,2543.6,2543.5,3.2078]
[1748885721186,0.786,2543.3,2543.2,7.2458]
[1748885721488,3.14022598,2543.3,2542.7,3.8655]
[1748885721681,0.7861,2543.1,2543.0,0.78609]
[1748885721882,19.1111,2543.1,2543.0,0.78609]
[1748885722189,20.344,2543.1,2543.0,0.78609]
[1748885722691,20.344,2543.1,2542.7,3.8655]
[1748885722692,19.5579,2543.1,2542.7,3.8655]
[1748885722888,2.35303961,2542.9,2542.8,4.82414]
[1748885723389,4.37206961,2542.9,2542.8,4.82414]
[1748885723582,4.37206961,2542.9,2542.8,0.78614]
[1748885723778,4.37206961,2542.9,2542.8,4.82414]
[1748885723987,6.79373961,2542.9,2542.5,4.038]
[1748885724193,1.8797,2542.8,2542.5,4.038]
[1748885724492,2.35194283,2542.6,2542.5,4.82423]
[1748885724785,2.35194283,2542.6,2542.4,3.99406]
[1748885724786,0.78625,2542.5,2542.4,3.99406]
[1748885724985,1.2429,2542.5,2542.4,3.99406]
[1748885725182,2.35194283,2542.6,2542.5,0.78625]
[1748885725386,2.98584283,2542.7,2542.6,0.78622]
[1748885725588,0.78622,2542.6,2542.5,4.82423]
[1748885725791,1.2429,2542.6,2542.5,4.038]
[1748885725991,2.02912,2542.6,2542.5,4.82425]
[1748885726193,4.38106283,2542.6,2542.5,4.82425]
[1748885726391,2.02912,2542.6,2542.5,4.82425]
[1748885726593,1.2429,2542.6,2542.2,0.6577]
[1748885726887,1.2429,2542.5,2542.3,0.78629]
[1748885727088,1.2429,2542.5,2542.4,4.034]
[1748885727089,2.02915,2542.5,2542.4,4.034]
[1748885727398,0.78638,2542.1,2542.0,0.78639]
[1748885727691,0.78637,2542.2,2542.1,0.78636]
[1748885727889,0.7864,2542.1,2542.0,0.78639]
[1748885728187,0.6768,2542.1,2541.7,3.2078]
[1748885728389,4.4412,2542.0,2541.6,4.034]
[1748885728587,0.78649,2541.8,2541.7,4.82048]
[1748885728893,0.78649,2541.8,2541.7,4.034]
[1748885729092,2.01989,2541.8,2541.7,4.034]
[1748885729394,1.2334,2541.8,2541.7,4.8205]
[1748885729591,1.8235,2541.8,2541.7,4.8205]
[1748885730004,2.60997,2541.8,2541.7,4.8205]
[1748885730189,1.8235,2541.8,2541.7,0.7865]
[1748885730494,1.8235,2541.8,2541.7,4.8205]
[1748885730697,0.5901,2541.8,2541.7,4.8205]
[1748885731192,0.5901,2541.8,2541.7,6.1561]
[1748885731382,0.5901,2541.8,2541.7,2.1221]
[1748885731581,0.5901,2541.8,2541.7,6.1571]
[1748885732184,0.5901,2541.8,2541.6,3.2078]
[1748885732385,1.37658,2541.8,2541.7,4.8215]
[1748885732586,0.5901,2541.8,2541.7,4.8215]
[1748885732785,1.37657,2541.8,2541.7,4.035]
[1748885732987,0.7865,2541.7,2541.6,3.2078]
[1748885733193,1.96652,2541.4,2540.7,3.2078]
[1748885733492,1.96664,2541.2,2540.7,7.2428]
[1748885733690,2.23358007,2541.2,2540.7,7.2428]
[1748885733885,1.9019,2541.1,2540.7,8.5784]
[1748885734085,0.78678,2540.8,2540.7,3.27849789]
[1748885734288,0.78678,2540.8,2540.7,7.31349789]
[1748885734892,0.78678,2540.8,2540.7,0.07069789]
[1748885735489,3.2078,2541.0,2540.7,0.07069789]
[1748885735689,21.5388,2541.0,2540.7,0.07069789]
[1748885735895,0.78678,2540.8,2540.7,0.07069789]
[1748885736387,0.78678,2540.8,2540.7,4.10569789]
[1748885736588,0.78695,2540.3,2540.0,3.2078]
[1748885736787,0.78691,2540.4,2540.1,4.036]
[1748885736983,0.6437,2540.6,2540.2,0.78696]
[1748885737188,0.78694,2540.3,2540.1,13.234]
[1748885737500,0.7869,2540.4,2540.3,0.78693]
[1748885737689,2.13969,2540.5,2540.2,4.036]
[1748885737995,1.3528,2540.5,2540.4,0.7869]
[1748885738295,0.6437,2540.6,2540.5,0.78687]
[1748885738494,1.43054,2540.6,2540.5,0.78687]
[1748885738695,1.43054,2540.6,2540.3,4.036]
[1748885738696,0.78688,2540.5,2540.3,4.036]
[1748885739000,0.78688,2540.5,2540.3,4.82291]
[1748885739192,2.78335,2540.6,2540.3,4.036]
[1748885739389,0.27515221,2541.3,2540.5,0.78686]
[1748885739390,18.334,2540.8,2540.5,0.78686]
[1748885739590,0.78682,2540.7,2540.5,0.78686]
[1748885740093,0.00589472,2541.3,2540.6,5.17489]
[1748885740389,0.00589472,2541.3,2541.2,0.78665]
[1748885740595,0.79251472,2541.3,2541.2,4.037]
[1748885740792,0.78665,2541.2,2541.1,0.78666]
[1748885740994,0.78668,2541.1,2541.0,0.6727]
[1748885741201,3.99448,2541.1,2541.0,4.037]
[1748885742493,0.78668,2541.1,2541.0,4.037]
[1748885742895,1.2425,2541.2,2541.1,0.19648]
[1748885743097,0.78666,2541.2,2541.0,4.037]
[1748885743397,0.78666,2541.2,2541.1,2.07248]
[1748885743596,0.78666,2541.2,2541.1,1.2858]
[1748885743797,0.00589472,2541.3,2541.1,0.78666]
[1748885743997,0.78668,2541.1,2541.0,4.037]
[1748885744598,3.23467472,2541.3,2540.9,13.1858]
[1748885744599,0.78671,2541.0,2540.9,13.1858]
[1748885744799,0.78671,2541.0,2540.9,17.2228]
[1748885745004,0.78671,2541.0,2540.9,11.9]
[1748885745197,0.78671,2541.0,2540.9,15.937]
[1748885745402,0.78671,2541.0,2540.9,4.037]
[1748885745698,0.78678,2540.8,2540.7,0.07069789]
[1748885746404,2.02698,2540.8,2540.7,0.07069789]
[1748885750298,0.78678,2540.8,2540.7,0.07069789]
[1748885750699,0.78676,2540.9,2540.8,0.78678]
[1748885751002,1.37689,2541.1,2541.0,0.78671]
[1748885751302,0.5902,2541.1,2541.0,4.82371]
[1748885752102,1.37688,2541.1,2541.0,4.82371]
[1748885753101,0.78673,2541.0,2540.9,0.78672]
[1748885753302,0.78673,2541.0,2540.9,4.82372]
[1748885753506,0.5902,2541.1,2540.9,4.037]
[1748885753706,0.78671,2541.0,2540.9,4.82375]
[1748885753907,0.78671,2541.0,2540.9,6.18175]
[1748885754510,0.5902,2541.1,2541.0,0.78671]
[1748885754812,0.5902,2541.1,2541.0,5.35251]
[1748885755004,0.5902,2541.1,2541.0,5.98321]
[1748885755309,1.37688,2541.1,2541.0,5.98321]
[1748885755808,0.5902,2541.1,2541.0,10.02021]
[1748885758504,0.5902,2541.1,2541.0,15.02021]
[1748885758808,0.00589472,2541.3,2541.2,0.78665]
[1748885759805,0.00589472,2541.3,2541.2,5.78665]
[1748885760507,0.00589472,2541.3,2541.2,0.78665]
[1748885760709,2.35194283,2541.8,2541.7,0.7865]
[1748885760907,2.35194283,2541.8,2541.7,8.0273]
[1748885761209,2.35194283,2541.8,2541.7,19.9273]
[1748885761411,0.5893,2541.9,2541.8,0.78647]
[1748885761609,0.5893,2541.9,2541.8,2.13777]
[1748885762412,0.5893,2541.9,2541.8,7.13777]
[1748885764012,0.5893,2541.9,2541.8,11.17077]
[1748885764715,1.3465,2542.7,2542.6,0.78622]
[1748885764916,0.6534,2542.8,2542.7,0.78619]
[1748885765212,3.69844283,2543.0,2542.7,1.96547]
[1748885765408,1.3465,2543.0,2542.9,0.78612]
[1748885765611,3.99386,2543.1,2543.0,0.78609]
[1748885765810,5.34036,2543.1,2543.0,4.81909]
[1748885766006,4.5543,2543.1,2543.0,4.81909]
[1748885766317,6.90624283,2543.1,2543.0,4.81909]
[1748885766608,4.5543,2543.1,2543.0,4.81909]
[1748885766816,3.00534283,2543.2,2543.1,0.78606]
[1748885767412,2.35783755,2543.3,2543.2,0.78603]
[1748885767713,0.00589472,2543.3,2543.2,0.78603]
[1748885768414,0.00589472,2543.3,2543.2,4.81803]
[1748885769517,1.30859472,2543.3,2543.2,4.81803]
[1748885770815,3.27362472,2543.3,2542.8,0.00589472]
[1748885771011,0.78612,2542.9,2542.8,4.03789472]
[1748885771204,3.99392,2542.9,2542.8,4.03789472]
[1748885771514,0.78628,2542.4,2542.0,3.2078]
[1748885771718,0.78628,2542.4,2542.3,0.7863]
[1748885772009,0.78628,2542.4,2542.3,4.8183]
[1748885772218,0.78627,2542.5,2542.4,0.78625]
[1748885772411,1.43034,2542.6,2542.5,0.78625]
[1748885773214,0.78625,2542.5,2542.4,0.78627]
[1748885773515,0.78625,2542.5,2542.4,4.81827]
[1748885774525,1.43034,2542.6,2542.5,0.78625]
[1748885774915,0.78625,2542.5,2542.4,4.81827]
[1748885777121,0.78625,2542.5,2542.3,0.00589472]
[1748885777122,0.78628,2542.4,2542.3,0.00589472]
[1748885777520,0.78643,2542.0,2541.9,4.81841]
[1748885780025,0.7865,2541.7,2541.4,7.2398]
[1748885780218,0.00589472,2541.8,2541.7,0.7865]
[1748885780521,0.00589472,2541.8,2541.7,3.9943]
[1748885784627,0.00589472,2541.8,2541.7,5.2819]
[1748885785526,0.00589472,2541.8,2541.7,10.2819]
[1748885785724,2.99854283,2542.3,2542.2,0.78634]
[1748885786025,2.99854283,2542.3,2542.2,4.81834]
[1748885786026,0.6466,2542.3,2542.2,4.81834]
[1748885787029,0.00589472,2542.5,2542.4,0.78628]
[1748885787235,1.44204472,2542.5,2542.4,0.78628]
[1748885787529,0.7863,2542.4,2542.3,0.78628]
[1748885787929,6.509,2542.1,2540.9,0.30380948]
[1748885788130,3.2078,2541.0,2540.6,0.30380948]
[1748885788331,3.2078,2540.7,2540.1,0.30380948]
[1748885788626,2.34653504,2540.6,2540.4,0.07070273]
[1748885788825,0.78685,2540.6,2540.4,0.85758273]
[1748885789425,3.99462,2540.7,2540.4,0.85758273]
[1748885789729,0.78684,2540.6,2540.4,0.85758273]
[1748885790040,3.2078,2540.7,2540.5,0.85757273]
[1748885790234,3.2078,2540.7,2540.6,5.11154273]
[1748885790723,3.99461,2540.7,2540.6,0.07070273]
[1748885790923,3.99462,2540.7,2540.6,4.255]
[1748885791125,4.5506,2540.7,2540.1,5.7953]
[1748885791325,4.5506,2540.7,2540.3,0.07070273]
[1748885791527,5.33742,2540.7,2540.5,0.78687]
[1748885791727,4.5506,2540.7,2540.6,0.85754273]
[1748885792122,5.33741,2540.7,2540.6,5.11254273]
[1748885792432,4.5506,2540.7,2540.6,5.11254273]
[1748885792635,3.2078,2540.7,2540.6,5.11254273]
[1748885794222,3.99461,2540.7,2540.6,5.11254273]
[1748885794429,3.2078,2540.7,2540.6,5.11254273]
[1748885795131,3.99461,2540.7,2540.6,5.18324062]
[1748885796433,3.2078,2540.7,2540.6,5.18324062]
[1748885796634,0.00589472,2540.8,2540.7,0.78681]
[1748885796837,0.00589472,2540.8,2540.7,2.20461273]
[1748885797938,0.79266472,2540.8,2540.7,2.20461273]
[1748885798137,0.00589472,2540.8,2540.7,2.20461273]
[1748885798439,0.79266472,2540.8,2540.7,4.32670273]
[1748885798641,0.79266472,2540.8,2540.7,5.11351273]
[1748885799436,0.79266472,2540.8,2540.7,0.85751273]
[1748885799641,1.38296472,2540.8,2540.7,5.11351273]
[1748885800140,0.7868,2540.7,2540.6,0.85753789]
[1748885800442,2.1032,2540.7,2540.6,5.11353789]
[1748885802141,2.1032,2540.7,2540.6,0.85753789]
[1748885802337,2.1032,2540.7,2540.6,5.11353789]
[1748885803135,2.1032,2540.7,2540.6,0.07069789]
[1748885803340,5.311,2540.7,2540.6,0.07069789]
[1748885803538,5.311,2540.7,2540.6,4.32769789]
[1748885804242,5.311,2540.7,2540.6,5.11453789]
[1748885804444,4.5242,2540.7,2540.6,5.11453789]
[1748885804644,5.31101,2540.7,2540.6,5.11453789]
[1748885805050,0.59619472,2540.8,2540.7,0.78681]
[1748885805239,0.59619472,2540.8,2540.7,5.35551273]
[1748885805445,0.59619472,2540.8,2540.7,10.35551273]
[1748885805446,4.72e-06,2540.8,2540.7,10.35551273]
[1748885806243,4.72e-06,2540.8,2540.7,22.25551273]
[1748885806645,4.72e-06,2540.8,2540.7,54.57851273]
[1748885807640,4.72e-06,2540.8,2540.7,22.25551273]
[1748885807941,4.72e-06,2540.8,2540.7,54.57851273]
[1748885809052,4.72e-06,2540.8,2540.7,54.57751273]
[1748885809847,4.72e-06,2540.8,2540.7,59.57751273]
[1748885810343,1.3377,2541.7,2541.6,0.78653]
[1748885810649,1.3377,2541.7,2541.6,5.11322329]
[1748885811644,1.3377,2541.7,2541.6,5.04253]
[1748885811845,3.2078,2541.8,2541.7,0.7865]
[1748885812144,2.35242976,2541.9,2541.8,0.78646]
[1748885812145,0.00589472,2541.9,2541.8,0.78646]
[1748885812444,0.00589472,2541.9,2541.8,0.85715329]
[1748885812845,0.00589472,2541.9,2541.8,5.11315329]
[1748885813033,1.28409472,2541.9,2541.8,5.11315329]
[1748885813547,1.28409472,2541.9,2541.8,0.78646]
[1748885813845,1.28409472,2541.9,2541.8,5.04246]
[1748885815044,0.00589472,2541.9,2541.8,5.04246]
[1748885815544,1.28409472,2541.9,2541.8,5.11315329]
[1748885817044,0.00589472,2541.9,2541.8,5.11315329]
[1748885817940,0.00589472,2541.9,2541.8,0.85715329]
[1748885818145,1.34969472,2541.9,2541.8,5.10115329]
[1748885819048,0.00589472,2541.9,2541.8,5.10115329]
[1748885820839,2.35049646,2541.9,2541.8,5.10115329]
[1748885822150,2.35049646,2541.9,2541.8,8.30895329]
[1748885822651,0.00589472,2541.9,2541.8,8.30895329]
[1748885822849,4.72e-06,2541.9,2541.8,8.30895329]
[1748885823046,3.12871338,2542.4,2542.3,0.78631]
[1748885823248,3.12871338,2542.4,2542.3,5.03031]
[1748885823444,3.12871338,2542.4,2542.3,5.10100329]
[1748885823644,3.2078,2542.5,2542.4,0.78628]
[1748885823645,6.33651338,2542.5,2542.4,0.78628]
[1748885823843,6.33651338,2542.5,2542.4,0.85697329]
[1748885824046,7.67171338,2542.5,2542.4,0.85697329]
[1748885824250,8.45796338,2542.5,2542.4,0.07069329]
[1748885824547,0.78631,2542.3,2542.2,0.79221472]
[1748885824752,0.7863,2542.4,2542.3,0.78628]
[1748885824949,2.1215,2542.4,2542.3,0.78628]
[1748885825254,2.1215,2542.4,2542.3,5.03028]
[1748885825449,1.3352,2542.4,2542.3,5.03028]
[1748885825947,1.3352,2542.4,2542.3,5.10097329]
[1748885826647,1.3352,2542.4,2542.3,5.03028]
[1748885826955,1.3352,2542.4,2542.3,5.10097329]
[1748885828648,1.3352,2542.4,2542.3,0.85697329]
[1748885828848,1.3352,2542.4,2542.3,5.10097329]
[1748885830950,0.6488,2542.6,2542.5,0.78625]
[1748885831157,0.6488,2542.6,2542.5,5.09994329]
[1748885831653,1.888,2542.6,2542.5,5.09994329]
[1748885832159,0.00589472,2542.7,2542.6,0.78622]
[1748885832356,3.91961965,2543.2,2542.9,0.78612]
[1748885832357,3.12871338,2543.0,2542.9,0.78612]
[1748885832657,3.99386,2543.1,2543.0,0.78609]
[1748885832852,3.2078,2543.1,2542.6,2.64224]
[1748885833156,3.2078,2543.1,2542.7,5.02915]
[1748885833157,0.78617,2542.8,2542.7,5.02915]
[1748885833351,3.99397,2542.8,2542.7,5.02915]
[1748885833757,3.2078,2542.8,2542.7,5.02915]
[1748885834158,3.8623,2542.8,2542.7,5.02915]
[1748885835558,3.8623,2542.8,2542.7,0.78615]
[1748885835757,3.8623,2542.8,2542.7,5.02919]
[1748885835949,6.99101338,2542.8,2542.7,5.02919]
[1748885836555,3.78321338,2542.8,2542.7,5.02919]
[1748885836761,6.99101338,2542.8,2542.7,5.02919]
[1748885837265,7.77717338,2542.8,2542.7,5.02919]
[1748885837764,6.99101338,2542.8,2542.7,5.02919]
[1748885838263,3.78321338,2542.8,2542.7,5.02919]
[1748885838455,3.12871338,2542.9,2542.8,0.78616]
[1748885838655,0.00589472,2543.0,2542.9,0.85681329]
[1748885839465,0.79198472,2543.0,2542.9,0.85681329]
[1748885839665,3.1346081,2543.0,2542.9,5.02912]
[1748885839965,3.9206981,2543.0,2542.9,5.02912]
[1748885840862,3.9206981,2543.0,2542.9,0.78612]
[1748885841059,0.79198472,2543.0,2542.9,4.243]
[1748885841263,0.79198472,2543.0,2542.9,5.02912]
[1748885842167,0.00589472,2543.0,2542.9,5.02912]
[1748885843762,0.79198472,2543.0,2542.9,5.02912]
[1748885846469,0.00589472,2543.0,2542.9,5.09981329]
[1748885847065,0.00589472,2543.0,2542.9,6.39791329]
[1748885848164,0.00589472,2543.0,2542.9,2.15491329]
[1748885848367,0.00589472,2543.0,2542.9,6.31791329]
[1748885850770,0.00589472,2543.0,2542.9,11.31791329]
[1748885850976,2.34978727,2543.2,2543.1,0.78606]
[1748885851172,2.34978727,2543.2,2543.1,0.85675329]
[1748885851468,4.65764,2543.5,2543.1,0.85675329]
[1748885851469,3.13310223,2543.5,2543.1,4.06455329]
[1748885851673,3.13310223,2543.6,2543.5,0.78594]
[1748885851977,3.13899695,2543.8,2543.7,0.78588]
[1748885852173,4.43599695,2543.8,2543.7,0.78588]
[1748885852374,5.22184695,2543.8,2543.7,0.78588]
[1748885852876,5.22184695,2543.8,2543.6,0.7859]
[1748885853068,5.22184695,2543.8,2543.7,0.78588]
[1748885853474,2.08874472,2543.8,2543.7,0.78588]
[1748885853674,5.22184695,2543.8,2543.7,0.78588]
[1748885854176,4.43599695,2543.8,2543.7,0.78588]
[1748885854376,1.30289472,2543.8,2543.7,0.78588]
[1748885855274,0.00589472,2543.8,2543.7,0.85657329]
[1748885855871,0.00589472,2543.8,2543.7,5.01957329]
[1748885856878,0.00589472,2543.8,2543.7,4.94888]
[1748885857375,1.34889472,2543.8,2543.7,4.94888]
[1748885857874,0.00589472,2543.8,2543.7,5.01957329]
[1748885859573,0.00589472,2543.8,2543.7,8.22737329]
[1748885861374,0.00589472,2543.8,2543.7,5.01857329]
[1748885865176,0.00589472,2543.8,2543.7,4.94788]
[1748885865177,3.99954472,2543.8,2543.7,4.94788]
[1748885865375,3.99954472,2543.8,2543.7,0.78588]
[1748885865577,3.99954472,2543.8,2543.7,4.94788]
[1748885866081,4.63024472,2543.8,2543.7,4.94788]
[1748885866283,3.84439472,2543.8,2543.7,4.94788]
[1748885866581,4.63024472,2543.8,2543.7,4.94788]
[1748885866782,5.91274472,2543.8,2543.7,4.94788]
[1748885866977,5.12689472,2543.8,2543.7,0.78588]
[1748885867173,5.12689472,2543.8,2543.7,4.94788]
[1748885867379,3.13597287,2543.8,2543.7,8.22637329]
[1748885867677,0.00589472,2543.8,2543.7,8.22637329]
[1748885868584,0.00589472,2543.8,2543.7,5.01857329]
[1748885869280,0.00589472,2543.8,2543.7,4.06437329]
[1748885869582,0.00589472,2543.8,2543.7,5.01857329]
[1748885869984,0.00589472,2543.8,2543.7,0.85657329]
[1748885870177,0.00589472,2543.8,2543.7,5.01857329]
[1748885870574,0.00589472,2543.8,2543.7,0.85657329]
[1748885870775,0.00589472,2543.8,2543.7,5.01857329]
[1748885872084,0.79174472,2543.8,2543.7,0.85657329]
[1748885872287,0.79174472,2543.8,2543.7,4.94788]
[1748885872482,0.00589472,2543.8,2543.7,4.94788]
[1748885872987,0.00589472,2543.8,2543.7,5.01857329]
[1748885873188,1.29029472,2543.8,2543.7,5.01857329]
[1748885873377,0.00589472,2543.8,2543.7,5.01857329]
[1748885874588,0.00589472,2543.8,2543.7,6.33247329]
[1748885876187,3.13007815,2544.0,2543.9,0.78581]
[1748885876188,2.3497868,2544.0,2543.9,0.78581]
[1748885876492,1.5021568,2544.2,2544.1,0.78575]
[1748885876789,4.4808,2544.5,2544.4,0.85635329]
[1748885878387,4.4808,2544.5,2544.4,5.01735329]
[1748885879690,4.4808,2544.5,2544.4,4.96435329]
[1748885880092,4.4808,2544.5,2544.4,0.85635329]
[1748885880291,4.4808,2544.5,2544.4,4.96435329]
[1748885880489,3.2078,2544.5,2544.4,4.96435329]
[1748885880692,0.6286,2544.6,2544.5,0.78563]
[1748885880888,3.75087339,2544.7,2544.6,0.7856]
[1748885881389,5.08337339,2544.7,2544.6,0.7856]
[1748885882085,5.86894339,2544.7,2544.6,0.7856]
[1748885882287,5.08337339,2544.7,2544.6,0.7856]
[1748885882487,5.86894339,2544.7,2544.6,0.7856]
[1748885882891,5.08337339,2544.7,2544.6,0.7856]
[1748885883194,5.86894339,2544.7,2544.6,0.7856]
[1748885883694,5.86894339,2544.7,2544.6,4.8936]
[1748885884389,5.86894339,2544.7,2544.6,0.7856]
[1748885884599,2.73888524,2544.7,2544.6,4.8936]
[1748885885492,5.08534016,2544.7,2544.6,4.8936]
[1748885886294,1.33639524,2544.7,2544.6,0.7856]
[1748885886487,1.33639524,2544.7,2544.6,4.8936]
[1748885887492,2.12196524,2544.7,2544.6,0.7856]
[1748885887697,2.12196524,2544.7,2544.6,4.8936]
[1748885888887,2.12196524,2544.7,2544.6,4.108]
[1748885889089,6.04158489,2544.7,2544.6,4.108]
[1748885889285,6.04158489,2544.7,2544.6,4.8936]
[1748885891296,5.25601489,2544.7,2544.6,4.8936]
[1748885891496,3.92351489,2544.7,2544.6,4.96429329]
[1748885891797,0.59269524,2544.7,2544.6,5.58159329]
[1748885892702,5.24e-06,2544.7,2544.6,11.24289329]
[1748885892890,3.13117004,2545.1,2544.7,1.96389]
[1748885893194,3.13117004,2545.3,2545.2,0.85610329]
[1748885893396,3.13117004,2545.3,2545.2,4.96410329]
[1748885894197,3.13117004,2545.4,2545.3,0.78538]
[1748885894593,0.6747,2545.5,2545.4,0.78535]
[1748885894799,0.6747,2545.5,2545.4,0.85604329]
[1748885895193,1.9801,2545.5,2545.4,0.85604329]
[1748885895495,5.10643203,2545.5,2545.4,0.85604329]
[1748885896099,3.12633203,2545.5,2545.4,0.85604329]
[1748885896297,7.37566965,2545.8,2545.7,0.78526]
[1748885896500,7.3631645,2545.8,2545.7,4.89226]
[1748885896901,6.5779145,2545.8,2545.7,4.89226]
[1748885897305,2.6708,2545.8,2545.7,4.89226]
[1748885898302,3.2078,2545.9,2545.8,0.78523]
[1748885898803,4.4566,2545.9,2545.8,0.78523]
[1748885899303,7.5786331,2545.9,2545.8,0.78523]
[1748885899502,8.3638231,2545.9,2545.8,0.78523]
[1748885899711,5.24179,2545.9,2545.8,4.89223]
[1748885902304,6.32800838,2545.9,2545.8,4.96292329]
[1748885903005,1.2752,2546.3,2546.2,0.7851]
[1748885903298,1.2752,2546.3,2546.2,4.8911]
[1748885904005,5.26807,2546.3,2546.2,0.7851]
[1748885904307,5.26807,2546.3,2546.2,4.8911]
[1748885905004,3.2078,2546.6,2546.3,1.96269]
[1748885905201,2.72053,2546.8,2546.5,0.07069329]
[1748885905406,7.1149145,2547.0,2546.9,0.78489]
[1748885905607,2.72039,2547.2,2547.1,0.78483]
[1748885905803,1.9356,2547.2,2547.1,4.89083]
[1748885906110,0.78479,2547.2,2547.1,4.106]
[1748885906297,7.25671065,2547.2,2547.1,4.89082]
[1748885906604,3.89292065,2547.2,2547.1,4.96151329]
[1748885906804,3.89292065,2547.3,2547.2,0.78479]
[1748885907004,5.17242065,2547.3,2547.2,0.78479]
[1748885907305,3.89292065,2547.3,2547.2,0.85548329]
[1748885907503,3.2078,2547.4,2547.3,0.78476]
[1748885907806,13.37374115,2547.7,2547.6,0.78467]
[1748885908001,7.88538065,2547.7,2547.6,4.89067]
[1748885908200,7.10072065,2547.7,2547.6,4.89067]
[1748885908401,3.2078,2547.7,2547.6,4.89067]
[1748885908605,3.99244,2547.7,2547.6,4.89067]
[1748885908807,5.30394,2547.7,2547.6,4.89067]
[1748885909805,5.30394,2547.7,2547.6,4.106]
[1748885910008,4.5193,2547.7,2547.6,4.89067]
[1748885910704,1.3115,2547.7,2547.6,4.89067]
[1748885910901,1.2959,2547.9,2547.8,0.78461]
[1748885911201,3.89292065,2548.2,2548.1,0.78452]
[1748885911402,4.5394,2548.4,2548.3,0.78446]
[1748885911604,3.6555672,2548.4,2548.3,0.78446]
[1748885911906,2.3239672,2548.4,2548.3,0.78446]
[1748885912102,3.2078,2548.8,2548.5,1.96099]
[1748885912407,3.2078,2549.4,2548.9,0.78425]
[1748885912608,3.2078,2549.4,2548.9,4.104]
[1748885912609,3.2078,2549.0,2548.9,4.104]
[1748885912802,3.2078,2549.0,2548.2,1.96119]
[1748885912803,3.2078,2549.0,2548.5,0.78437]
[1748885912997,3.2078,2548.6,2548.5,0.07069329]
[1748885913216,3.99216,2548.6,2548.5,4.104]
[1748885913406,5.8426,2548.6,2548.5,4.88839]
[1748885913600,5.8426,2548.6,2548.1,5.16905]
[1748885913601,0.78444,2548.4,2548.2,0.78449]
[1748885913913,0.78442,2548.5,2548.3,4.88845]
[1748885914112,1.2745,2548.4,2548.3,4.88845]
[1748885914307,1.2745,2548.4,2548.3,0.78445]
[1748885914814,1.2745,2548.4,2548.3,4.103]
[1748885915114,1.2745,2548.4,2548.3,4.88746]
[1748885916706,3.2078,2548.6,2548.5,0.78439]
[1748885916901,3.2078,2548.7,2548.6,0.78436]
[1748885917112,2.6464,2548.9,2548.8,0.7843]
[1748885917910,3.43067,2548.9,2548.8,0.7843]
[1748885918607,0.78433,2548.8,2548.3,1.96112]
[1748885918914,4.5675,2548.7,2548.6,0.78433]
[1748885919616,1.3597,2548.7,2548.6,0.78433]
[1748885919806,3.2078,2549.0,2548.9,0.78427]
[1748885920116,3.2078,2549.0,2548.9,4.88627]
[1748885920506,4.452,2549.0,2548.9,4.88627]
[1748885920709,5.23624,2549.0,2548.9,4.88627]
[1748885920914,4.452,2549.0,2548.9,4.88627]
[1748885921619,5.23624,2549.0,2548.9,4.88627]
[1748885921915,5.23624,2549.0,2548.9,4.102]
[1748885922715,4.452,2549.0,2548.3,5.1689]
[1748885922916,0.78433,2548.8,2548.7,0.78431]
[1748885923413,2.82243,2548.8,2548.7,0.78431]
[1748885927122,6.03023,2548.8,2548.7,0.78431]
[1748885927417,6.03023,2548.8,2548.7,4.88531]
[1748885927618,6.03023,2548.8,2548.7,4.101]
[1748885928520,0.7844,2548.6,2548.5,0.78436]
[1748885929020,0.7844,2548.6,2548.5,4.88536]
[1748885930921,2.1313,2548.6,2548.5,4.88536]
[1748885931221,5.22560265,2548.6,2548.5,4.88536]
[1748885931819,4.44120265,2548.6,2548.5,4.88536]
[1748885932016,4.44120265,2548.6,2548.5,0.78436]
[1748885932217,1.3469,2548.6,2548.5,0.78436]
[1748885932817,2.13127,2548.6,2548.5,0.78436]
[1748885933225,0.78434,2548.7,2548.6,0.78434]
[1748885933518,4.67726065,2548.7,2548.6,0.85503329]
[1748885933725,6.02546065,2548.7,2548.6,0.78434]
[1748885934227,1.3482,2548.7,2548.6,0.78434]
[1748885934430,6.02546065,2548.7,2548.6,0.78434]
[1748885935118,2.13254,2548.7,2548.6,0.78434]
[1748885935318,2.13254,2548.7,2548.6,0.41640281]
[1748885935828,0.7844,2548.6,2548.5,0.78438]
[1748885936019,2.1289,2548.6,2548.5,0.78438]